bitfinex-derivatives/quotes_SOLF0:USTF0_20230103
["timestamp","ask_amount","ask_price","bid_price","bid_amount"]
[1672758196429,16.31,12.201,12.194,0.07048736]
[1672758197582,16.23,12.199,12.194,0.07048736]
[1672758198212,5.0,12.202,12.194,0.07048736]
[1672758198839,21.32,12.202,12.194,0.07048736]
[1672758199053,16.25,12.199,12.194,0.07048736]
[1672758201782,16.08883147,12.199,12.194,0.07048736]
[1672758203993,16.3,12.201,12.194,0.07048736]
[1672758204207,16.26,12.205,12.194,0.07048736]
[1672758204414,5.0,12.204,12.194,0.07048736]
[1672758207043,5.0,12.204,12.194,16.41048736]
[1672758207253,5.0,12.207,12.194,16.41048736]
[1672758207462,5.0,12.207,12.195,5.0]
[1672758207778,5.0,12.207,12.197,0.0678778]
[1672758208192,21.3,12.208,12.197,0.0678778]
[1672758209983,5.0,12.208,12.198,16.34]
[1672758210196,21.26,12.212,12.198,62.5137]
[1672758210404,21.26,12.212,12.201,0.06129464]
[1672758215655,16.26,12.212,12.201,0.06129464]
[1672758215973,5.0,12.214,12.201,0.06129464]
[1672758216183,5.0,12.214,12.201,5.06129464]
[1672758216499,21.32,12.215,12.201,5.06129464]
[1672758216814,21.32,12.215,12.204,0.06304685]
[1672758219334,1.3,12.214,12.204,0.06304685]
[1672758221433,16.26,12.21,12.204,0.06304685]
[1672758224378,16.23,12.208,12.204,0.06304685]
[1672758229418,16.1365127,12.208,12.204,0.06304685]
[1672758231200,21.25,12.216,12.204,0.06304685]
[1672758231520,16.25,12.216,12.204,0.06304685]
[1672758232678,16.34,12.21,12.204,0.06304685]
[1672758232890,16.34,12.21,12.203,0.0693897]
[1672758233096,16.34,12.21,12.202,0.06214121]
[1672758233727,5.0,12.209,12.202,0.06214121]
[1672758235193,16.34,12.21,12.202,0.06214121]
[1672758240351,16.34,12.21,12.203,1798.0]
[1672758240562,16.34,12.21,12.204,5.0]
[1672758242024,16.34,12.21,12.202,0.06214121]
[1672758244237,16.26059774,12.21,12.202,0.06214121]
[1672758246232,16.25,12.215,12.202,0.06214121]
[1672758246439,16.25,12.215,12.204,0.06889974]
[1672758246759,5.0,12.214,12.204,0.06889974]
[1672758247698,5.0,12.217,12.204,0.06889974]
[1672758248334,5.0,12.217,12.203,5.0]
[1672758248860,16.25,12.216,12.203,5.0]
[1672758249176,0.06700783,12.214,12.205,0.06599869]
[1672758251061,0.06700783,12.214,12.205,5.06599869]
[1672758252325,0.06700783,12.214,12.206,44.4786]
[1672758252535,0.06700783,12.214,12.207,5.0]
[1672758254843,16.23,12.213,12.206,44.4786]
[1672758255476,5.0,12.212,12.206,44.4786]
[1672758255690,5.0,12.212,12.205,0.06599869]
[1672758257687,16.23,12.21,12.205,0.06599869]
[1672758257997,5.0,12.209,12.198,5.0]
[1672758258417,16.34,12.202,12.193,5.0]
[1672758259046,16.40182938,12.202,12.193,5.06147334]
[1672758259262,16.40182938,12.202,12.193,0.06147334]
[1672758259465,5.0,12.201,12.193,0.06147334]
[1672758260521,16.34,12.199,12.193,0.06147334]
[1672758260733,5.0,12.198,12.193,0.06147334]
[1672758261153,21.34,12.201,12.193,0.06147334]
[1672758265985,0.06182938,12.202,12.193,0.06147334]
[1672758266301,0.06182938,12.202,12.193,5.06147334]
[1672758267134,0.06182938,12.202,12.195,16.34]
[1672758267348,0.06182938,12.202,12.196,5.0]
[1672758271346,5.0,12.208,12.202,0.03366624]
[1672758271976,21.29,12.209,12.202,0.03366624]
[1672758274183,1.2,12.208,12.202,0.03366624]
[1672758276496,16.23,12.206,12.202,0.03366624]
[1672758276695,5.0,12.205,12.202,0.03366624]
[1672758277967,16.23,12.206,12.202,0.03366624]
[1672758284056,16.34,12.204,12.186,16.19]
[1672758284271,16.25,12.199,12.188,47.34]
[1672758284475,5.0,12.198,12.189,5.0]
[1672758285317,5.06276427,12.198,12.189,5.06656428]
[1672758285846,0.06276427,12.198,12.189,21.31656428]
[1672758286794,0.06276427,12.198,12.189,5.06656428]
[1672758290893,0.06276427,12.198,12.19,16.26]
[1672758291103,0.06276427,12.198,12.191,5.0]
[1672758291524,0.06276427,12.198,12.192,16.34]
[1672758291734,0.06276427,12.198,12.193,5.0]
[1672758292050,0.06276427,12.198,12.195,5.0]
[1672758292256,0.06816046,12.201,12.195,5.0]
[1672758292465,0.07070358,12.202,12.195,5.0]
[1672758296986,16.23,12.206,12.202,0.08928369]
[1672758303184,0.07056589,12.208,12.202,0.08928369]
[1672758304235,16.26,12.207,12.202,0.08928369]
[1672758306331,16.41056589,12.208,12.202,0.08928369]
[1672758306861,0.07056589,12.208,12.202,0.08928369]
[1672758309913,16.26,12.212,12.208,0.0977881]
[1672758314220,2.0,12.211,12.208,0.0977881]
[1672758316216,7.0,12.211,12.208,0.0977881]
[1672758316427,16.25,12.209,12.202,0.08928369]
[1672758316636,5.0,12.208,12.202,0.08928369]
[1672758318001,16.31817057,12.209,12.202,0.08928369]
[1672758323995,0.06817057,12.209,12.203,1798.0]
[1672758324196,0.06817057,12.209,12.204,5.0]
[1672758324408,0.06817057,12.209,12.202,0.08928369]
[1672758324935,16.40817057,12.209,12.202,0.08928369]
[1672758325992,0.06817057,12.209,12.202,0.08928369]
[1672758326727,0.06817057,12.209,12.203,1798.0]
[1672758326931,16.34,12.214,12.204,53.6231]
[1672758327251,16.34,12.217,12.205,5.0]
[1672758327462,16.34,12.217,12.205,1803.0]
[1672758327776,16.34,12.217,12.206,5.0]
[1672758327987,16.34,12.217,12.207,0.06256746]
[1672758329773,16.34,12.219,12.207,0.06256746]
[1672758329976,5.0,12.218,12.209,0.06083882]
[1672758330723,1.6,12.217,12.209,0.06083882]
[1672758331138,16.34,12.216,12.209,0.06083882]
[1672758331348,5.0,12.215,12.209,0.06083882]
[1672758332083,16.34,12.216,12.209,0.06083882]
[1672758332932,16.34,12.216,12.21,1798.0]
[1672758333243,16.34,12.216,12.211,5.0]
[1672758334190,16.34,12.216,12.21,1798.0]
[1672758337237,16.34,12.217,12.21,1798.0]
[1672758338386,16.34,12.217,12.209,0.06124372]
[1672758338601,877.0,12.289,12.209,0.06124372]
[1672758338602,877.0,12.323,12.216,16.31]
[1672758338917,575.0,12.303,12.265,0.06816361]
[1672758339233,98.7721,12.302,12.224,575.0]
[1672758339441,5.0,12.301,12.225,111.0191]
[1672758339653,16.25,12.244,12.23,16.34]
[1672758339865,16.25,12.241,12.227,16.34]
[1672758340075,0.06977203,12.238,12.231,5.0]
[1672758341225,16.35977203,12.238,12.23,0.06427484]
[1672758341546,5.0,12.233,12.23,0.06427484]
[1672758341751,5.0,12.233,12.227,0.06014995]
[1672758341963,5.0,12.233,12.226,0.06894509]
[1672758342169,5.0,12.233,12.225,0.06512218]
[1672758342594,16.41085943,12.234,12.225,0.06512218]
[1672758343858,16.29,12.231,12.225,0.06512218]
[1672758344067,16.3,12.228,12.225,0.06512218]
[1672758344383,16.3,12.228,12.222,0.06206287]
[1672758344804,21.26,12.23,12.222,0.06206287]
[1672758345226,5.0,12.23,12.222,0.06206287]
[1672758345537,0.0635049,12.231,12.222,0.06206287]
[1672758347118,5.0635049,12.231,12.222,0.06206287]
[1672758348169,16.25,12.229,12.222,0.06206287]
[1672758348379,5.0,12.228,12.222,0.06206287]
[1672758351004,16.25,12.229,12.222,0.06206287]
[1672758351215,1.6,12.23,12.222,0.06206287]
[1672758351426,1.49044612,12.23,12.222,0.06206287]
[1672758351636,0.0635049,12.231,12.223,16.31]
[1672758351844,0.0635049,12.231,12.223,64.6994]
[1672758352056,0.0635049,12.231,12.224,5.0]
[1672758352583,0.0635049,12.231,12.225,16.19]
[1672758352793,0.0635049,12.231,12.226,5.0]
[1672758353005,0.0035049,12.231,12.228,16.25]
[1672758353216,21.34,12.243,12.229,5.0]
[1672758354161,21.34,12.243,12.231,0.06444796]
[1672758355528,16.34,12.241,12.231,0.06444796]
[1672758355740,5.0,12.24,12.231,0.06444796]
[1672758357943,16.34,12.241,12.231,0.06444796]
[1672758358154,16.26,12.242,12.231,0.06444796]
[1672758358577,18.26,12.242,12.231,0.06444796]
[1672758358889,18.26,12.242,12.231,5.06444796]
[1672758359098,18.26,12.242,12.231,49.46814796]
[1672758359310,2.0,12.242,12.232,16.34]
[1672758359526,2.0,12.242,12.235,5.0]
[1672758361731,5.0,12.246,12.234,0.06630207]
[1672758362469,16.36,12.245,12.234,0.06630207]
[1672758362678,5.0,12.244,12.234,0.06630207]
[1672758363731,16.37,12.241,12.234,0.06630207]
[1672758363940,5.0,12.24,12.234,0.06630207]
[1672758365724,16.37,12.241,12.234,0.06630207]
[1672758365938,16.37,12.241,12.24,0.1687377]
[1672758366141,5.0,12.24,12.234,0.06630207]
[1672758366352,1.4,12.243,12.234,0.06630207]
[1672758366566,1.4,12.243,12.236,16.37]
[1672758366776,1.4,12.243,12.237,5.0]
[1672758368348,5.0,12.248,12.237,5.0]
[1672758368662,5.0,12.25,12.239,16.37]
[1672758368878,5.0,12.25,12.24,5.0]
[1672758369086,5.0,12.25,12.241,0.0694174]
[1672758369715,16.37,12.253,12.241,0.0694174]
[1672758369926,21.37,12.256,12.241,16.4394174]
[1672758370138,21.37,12.256,12.242,5.0]
[1672758370348,21.37,12.256,12.244,0.06644195]
[1672758371928,5.0,12.256,12.244,0.06644195]
[1672758372144,5.0,12.256,12.244,5.06644195]
[1672758372458,1.0,12.253,12.244,5.06644195]
[1672758374558,1.0,12.253,12.244,4.89485121]
[1672758374768,1.0,12.253,12.243,16.28]
[1672758375292,21.36,12.256,12.242,5.0]
[1672758375609,0.06305819,12.253,12.245,0.06037147]
[1672758376452,0.06305819,12.253,12.246,16.28]
[1672758376765,0.06305819,12.253,12.247,5.0]
[1672758376975,0.06305819,12.253,12.247,53.9789]
[1672758378867,0.06305819,12.253,12.247,48.9789]
[1672758380442,0.06305819,12.253,12.245,0.06037147]
[1672758382750,16.36,12.252,12.245,0.06037147]
[1672758382957,5.0,12.251,12.245,0.06037147]
[1672758383598,16.31,12.249,12.245,0.06037147]
[1672758383807,16.37,12.247,12.245,0.06037147]
[1672758384122,5.0,12.246,12.242,0.06819412]
[1672758384332,16.37,12.245,12.24,0.06174362]
[1672758384539,5.0,12.246,12.238,0.06463658]
[1672758384744,16.21,12.262,12.244,16.37]
[1672758385065,5.0,12.258,12.245,5.0]
[1672758385271,16.28,12.262,12.247,16.34]
[1672758385485,5.0,12.265,12.25,5.0]
[1672758385694,16.21,12.26,12.253,0.06907884]
[1672758385906,16.37,12.254,12.253,0.06907884]
[1672758386115,16.37,12.254,12.249,0.06865683]
[1672758386325,5.0,12.253,12.247,0.07116263]
[1672758386534,16.37,12.248,12.247,0.07116263]
[1672758386749,16.37,12.248,12.243,0.06960388]
[1672758386960,5.0,12.247,12.241,0.06469297]
[1672758387694,5.0,12.256,12.243,16.37]
[1672758387905,5.0,12.256,12.245,0.06030471]
[1672758388639,1.3,12.265,12.254,16.37]
[1672758388854,1.3,12.265,12.255,5.06231779]
[1672758389065,17.67,12.265,12.255,5.06231779]
[1672758389273,5.0,12.264,12.255,0.06231779]
[1672758389691,66.15,12.264,12.255,0.06231779]
[1672758390008,16.37,12.256,12.255,0.00231779]
[1672758390218,16.37,12.256,12.241,46.5974]
[1672758390536,16.37,12.247,12.239,5.0]
[1672758390745,5.0,12.246,12.239,5.0]
[1672758390955,5.0,12.246,12.239,5.06501888]
[1672758391680,16.43830229,12.247,12.239,5.06501888]
[1672758391898,0.06830229,12.247,12.239,5.06501888]
[1672758392949,16.21,12.258,12.245,5.0]
[1672758393895,16.21,12.258,12.247,0.07114112]
[1672758394106,16.21,12.258,12.247,5.07114112]
[1672758395786,16.21,12.258,12.247,0.07114112]
[1672758395996,1.0,12.256,12.247,0.07114112]
[1672758397468,1.0,12.256,12.247,5.07114112]
[1672758397994,1.0,12.256,12.247,0.07114112]
[1672758399252,1.0,12.256,12.247,5.07114112]
[1672758399675,5.0,12.26,12.247,5.07114112]
[1672758400205,2.0,12.255,12.247,5.07114112]
[1672758402824,2.0,12.255,12.247,0.07114112]
[1672758403237,5.0,12.26,12.247,0.07114112]
[1672758403454,17.19,12.261,12.247,5.07114112]
[1672758403666,5.0,12.261,12.25,0.06730178]
[1672758405457,12.25,12.259,12.25,0.06730178]
[1672758405666,5.0,12.258,12.25,0.06730178]
[1672758405979,4.7945973,12.258,12.25,0.06730178]
[1672758407767,12.25,12.255,12.25,0.06730178]
[1672758407976,5.0,12.254,12.25,0.06730178]
[1672758408821,5.0,12.254,12.25,1.78e-06]
[1672758409030,12.25,12.252,12.237,5.0]
[1672758409245,12.25,12.247,12.237,5.0]
[1672758409976,0.06863529,12.246,12.238,0.06400765]
[1672758410814,12.14,12.244,12.238,0.06400765]
[1672758411023,5.0,12.243,12.238,0.06400765]
[1672758411648,0.06863529,12.246,12.238,0.06400765]
[1672758413858,1.1,12.253,12.239,17.25]
[1672758414074,1.1,12.253,12.24,5.0]
[1672758414388,12.19,12.26,12.24,5.0]
[1672758415011,5.0,12.259,12.246,0.061858]
[1672758415335,5.0,12.259,12.248,0.06365402]
[1672758415545,5.0,12.259,12.249,0.06205099]
[1672758415756,12.25,12.257,12.25,0.06431707]
[1672758415966,5.0,12.256,12.249,0.06836117]
[1672758416170,5.0,12.256,12.248,0.06725525]
[1672758416385,5.0,12.259,12.248,0.07046093]
[1672758418278,6.8,12.259,12.248,0.07046093]
[1672758420910,12.19,12.256,12.248,0.07046093]
[1672758421326,5.0,12.255,12.248,0.07046093]
[1672758423644,12.19,12.256,12.248,0.07046093]
[1672758425111,17.25,12.26,12.248,0.07046093]
[1672758425747,1.5,12.255,12.248,0.07046093]
[1672758426800,1.5,12.255,12.248,5.07046093]
[1672758427949,12.3,12.269,12.249,5.0]
[1672758428165,12.3,12.269,12.254,0.06143438]
[1672758428375,48.2531,12.273,12.257,0.07034256]
[1672758428586,5.0,12.272,12.261,0.06377045]
[1672758429111,19.93622955,12.259,12.254,5.0]
[1672758433102,19.93622955,12.259,12.253,12.25]
[1672758433319,19.93622955,12.259,12.252,0.06481177]
[1672758433626,48.91,12.291,12.258,12.15]
[1672758433836,5.0,12.289,12.251,877.0]
[1672758434052,45.359,12.288,12.259,5.0]
[1672758434264,66.04,12.287,12.259,5.0]
[1672758434473,12.19,12.271,12.252,17.17]
[1672758434679,12.25,12.268,12.257,0.0675917]
[1672758434887,12.14,12.264,12.258,0.06722757]
[1672758435094,5.0,12.263,12.257,0.07006895]
[1672758435304,5.0,12.263,12.256,0.06168838]
[1672758435520,5.0,12.269,12.255,0.06029898]
[1672758435730,5.0,12.269,12.258,0.06135937]
[1672758436575,12.15,12.267,12.258,0.06135937]
[1672758436787,5.0,12.266,12.258,0.06135937]
[1672758437835,5.0,12.269,12.258,0.06135937]
[1672758439092,1.7,12.268,12.258,0.06135937]
[1672758440256,12.25,12.266,12.258,0.06135937]
[1672758440467,5.0,12.265,12.258,0.06135937]
[1672758441832,5.0,12.265,12.258,1798.06135937]
[1672758442045,12.25,12.266,12.258,1798.06135937]
[1672758442573,12.19,12.263,12.258,1798.06135937]
[1672758442782,12.19,12.26,12.252,1773.5812]
[1672758443095,12.19,12.257,12.248,877.0]
[1672758443306,12.19,12.257,12.248,2675.0]
[1672758443517,5.0,12.256,12.249,5.0]
[1672758443829,5.0,12.256,12.25,1798.0]
[1672758444030,5.0,12.256,12.251,5.0]
[1672758444245,0.06549537,12.257,12.251,5.0]
[1672758447089,1.8,12.256,12.251,5.0]
[1672758447508,1.8,12.256,12.25,1798.0]
[1672758448344,1.8,12.256,12.251,5.0]
[1672758448559,0.06549537,12.257,12.252,1798.0]
[1672758448765,5.0,12.264,12.253,5.0]
[1672758448981,5.0,12.267,12.254,1846.3083]
[1672758449191,5.0,12.267,12.255,5.0]
[1672758449397,17.34,12.269,12.256,1798.0]
[1672758449605,17.34,12.269,12.257,5.0]
[1672758449816,12.34,12.269,12.258,1798.068221]
[1672758450028,12.34,12.269,12.259,5.0]
[1672758450241,12.34,12.269,12.26,1798.0]
[1672758450450,1.6,12.266,12.26,1843.4515]
[1672758451182,1.6,12.266,12.26,1798.0]
[1672758453715,12.34,12.269,12.26,1798.0]
[1672758453924,12.34,12.269,12.261,5.0]
[1672758454238,12.34,12.269,12.261,5.06971913]
[1672758454443,1.5,12.265,12.261,5.06971913]
[1672758454870,1.5,12.265,12.261,0.06971913]
[1672758457182,1.5,12.265,12.261,5.06971913]
[1672758457387,17.25,12.273,12.261,5.06971913]
[1672758457708,17.25,12.273,12.261,1850.60931913]
[1672758458433,12.25,12.273,12.261,1850.60931913]
[1672758458649,5.0,12.276,12.261,1850.60931913]
[1672758458861,5.0,12.276,12.264,0.06699761]
[1672758459071,12.15,12.273,12.264,0.06699761]
[1672758459385,5.0,12.272,12.264,0.06699761]
[1672758459595,5.0,12.276,12.264,0.06699761]
[1672758460019,5.0,12.273,12.264,0.06699761]
[1672758461280,2.0,12.272,12.264,0.06699761]
[1672758463489,1.82131509,12.272,12.264,0.06699761]
[1672758464224,5.0,12.273,12.264,0.06699761]
[1672758464640,1.3,12.272,12.264,0.06699761]
[1672758466643,16.3,12.271,12.264,0.06699761]
[1672758466851,5.0,12.27,12.264,0.06699761]
[1672758467164,16.3,12.271,12.264,0.06699761]
[1672758467581,21.22,12.276,12.264,0.06699761]
[1672758467798,5.0,12.276,12.264,0.06699761]
[1672758468427,2.0,12.272,12.264,0.06699761]
[1672758468954,5.0,12.276,12.265,5.0]
[1672758469578,5.0,12.277,12.265,5.0]
[1672758469790,5.0,12.284,12.27,16.3]
[1672758470004,5.0,12.285,12.273,0.06741132]
[1672758470323,16.2,12.286,12.275,0.0617066]
[1672758470628,60.98,12.299,12.275,0.0617066]
[1672758470843,5.0,12.285,12.278,0.06880476]
[1672758471152,21.24,12.289,12.278,0.06880476]
[1672758471995,5.0,12.289,12.278,16.36880476]
[1672758472207,90.9724,12.301,12.278,16.36880476]
[1672758472208,60.97,12.301,12.287,16.3]
[1672758472412,5.0,12.302,12.29,0.0703434]
[1672758472627,5.0,12.302,12.29,5.0703434]
[1672758473154,16.3,12.298,12.29,0.0703434]
[1672758473369,5.0,12.297,12.29,0.0703434]
[1672758473679,5.0,12.29,12.275,16.3]
[1672758473891,16.3,12.288,12.275,64.8025]
[1672758474516,16.3,12.288,12.281,5.0]
[1672758474728,0.06784502,12.289,12.281,5.0]
[1672758474937,0.06478509,12.289,12.281,52.57355827]
[1672758475259,1.5,12.288,12.281,52.57355827]
[1672758476099,1.5,12.288,12.281,5.07085827]
[1672758477149,1.5,12.288,12.281,0.07085827]
[1672758477354,5.0,12.287,12.281,0.07085827]
[1672758477980,0.06478509,12.289,12.282,16.16]
[1672758478192,21.2,12.297,12.283,5.0]
[1672758478720,5.0,12.296,12.28,575.0]
[1672758479037,1.1,12.287,12.28,575.0]
[1672758479249,17.4,12.287,12.28,575.0]
[1672758480508,1.1,12.287,12.28,575.0]
[1672758481136,1.1,12.287,12.281,5.0]
[1672758481875,1.1,12.287,12.282,45.3251]
[1672758482190,5.0,12.296,12.283,5.0]
[1672758482398,17.18,12.299,12.285,0.06256296]
[1672758482922,17.18,12.299,12.288,0.06097367]
[1672758483972,5.0,12.299,12.288,0.06097367]
[1672758484188,17.15,12.302,12.288,0.06097367]
[1672758484399,5.0,12.301,12.291,0.06827531]
[1672758484597,5.0,12.301,12.292,0.06005744]
[1672758484916,12.18,12.305,12.292,0.06005744]
[1672758485127,17.18,12.308,12.287,12.18]
[1672758485547,17.18,12.308,12.288,5.0]
[1672758486073,1.4,12.298,12.289,44.804]
[1672758486284,1.4,12.298,12.29,5.0]
[1672758486908,5.0,12.31,12.29,17.18]
[1672758487118,60.89,12.317,12.297,12.14]
[1672758487325,5.0,12.317,12.302,0.06192405]
[1672758487539,5.0,12.317,12.305,0.06682652]
[1672758488592,5.0,12.318,12.305,0.06682652]
[1672758489645,17.18,12.318,12.305,0.06682652]
[1672758490699,12.11,12.311,12.29,17.18]
[1672758490909,5.0,12.31,12.292,46.2881]
[1672758491222,5.0,12.31,12.293,5.0]
[1672758491435,65.93,12.31,12.293,5.0]
[1672758491751,0.06205027,12.306,12.297,0.07132942]
[1672758492805,5.06205027,12.306,12.297,0.07132942]
[1672758493638,0.06205027,12.306,12.297,0.07132942]
[1672758494684,0.00205027,12.306,12.297,5.07132942]
[1672758494900,17.07,12.325,12.305,12.18]
[1672758495218,5.0,12.325,12.306,5.0]
[1672758496058,5.0,12.328,12.31,0.06292834]
[1672758496267,5.0,12.328,12.315,0.06471842]
[1672758496478,12.18,12.325,12.315,0.06471842]
[1672758496687,12.18,12.322,12.315,0.06471842]
[1672758497003,12.18,12.318,12.306,5.0]
[1672758497213,5.0,12.317,12.306,5.0]
[1672758497839,12.18,12.318,12.306,5.0]
[1672758498057,0.06066465,12.316,12.308,0.06600079]
[1672758498265,0.06760707,12.316,12.308,0.06600079]
[1672758498791,0.06760707,12.316,12.308,5.06600079]
[1672758500154,0.06760707,12.316,12.31,5.0]
[1672758500359,5.0,12.328,12.31,17.18]
[1672758500679,5.0,12.33,12.313,12.18]
[1672758500890,5.0,12.33,12.314,5.0]
[1672758501091,12.14,12.328,12.309,45.9239]
[1672758501301,5.0,12.321,12.301,5.0]
[1672758501520,12.14,12.318,12.309,0.06276065]
[1672758501729,5.0,12.317,12.309,0.06276065]
[1672758502464,5.0,12.321,12.309,0.06276065]
[1672758502670,17.18,12.325,12.309,0.06276065]
[1672758502882,5.0,12.325,12.313,0.06403735]
[1672758503515,5.0,12.327,12.313,0.06403735]
[1672758503725,5.0,12.327,12.316,0.06256401]
[1672758504561,17.17,12.327,12.316,0.06256401]
[1672758504769,5.0,12.318,12.31,5.0]
[1672758505503,5.0,12.322,12.31,5.0]
[1672758505717,0.06327048,12.32,12.312,0.06231441]
[1672758510979,1.7,12.319,12.312,0.06231441]
[1672758514655,0.06327048,12.32,12.312,0.06231441]
[1672758515283,1.9,12.319,12.312,0.06231441]
[1672758517709,1.9,12.319,12.312,1798.06231441]
[1672758517912,1.73308009,12.319,12.313,5.0]
[1672758518437,0.06327048,12.32,12.313,5.0]
[1672758519067,1.6,12.319,12.313,5.0]
[1672758520226,1.6,12.319,12.312,1798.06231441]
[1672758520427,1.6,12.319,12.313,5.0]
[1672758521280,0.00327048,12.32,12.313,5.0]
[1672758522432,1.0,12.319,12.313,5.0]
[1672758522749,0.00327048,12.32,12.313,5.0]
[1672758523380,0.00327048,12.32,12.313,1803.0]
[1672758523692,0.00327048,12.32,12.314,5.0]
[1672758525270,0.00327048,12.32,12.316,5.0]
[1672758526107,0.00327048,12.32,12.314,5.0]
[1672758526316,0.00327048,12.32,12.313,1841.9967]
[1672758527055,0.00327048,12.32,12.313,1798.0]
[1672758527680,0.00327048,12.32,12.314,5.0]
[1672758528734,0.00327048,12.32,12.313,1798.0]
[1672758529262,1.5,12.319,12.313,1798.0]
[1672758530839,13.61,12.319,12.313,1798.0]
[1672758531147,1.5,12.319,12.313,1798.0]
[1672758531362,0.00327048,12.32,12.314,5.0]
[1672758531891,0.00327048,12.32,12.315,1798.0]
[1672758532098,0.00327048,12.32,12.316,5.0]
[1672758532309,0.00327048,12.32,12.316,1803.0]
[1672758532727,1.1,12.319,12.316,1803.0]
[1672758534307,1.1,12.319,12.316,1798.0]
[1672758535040,1.1,12.319,12.312,0.06231441]
[1672758535250,6.1,12.319,12.312,0.06231441]
[1672758536617,5.0,12.319,12.312,0.06231441]
[1672758537354,6.8,12.319,12.312,0.06231441]
[1672758537875,1.8,12.319,12.312,0.06231441]
[1672758538924,1.8,12.319,12.313,1798.0]
[1672758539878,1.8,12.319,12.314,5.0]
[1672758540714,1.8,12.319,12.313,44.1037]
[1672758541134,0.00327048,12.32,12.313,44.1037]
[1672758541970,1.2,12.319,12.313,44.1037]
[1672758542183,1.2,12.319,12.314,5.0]
[1672758544915,1.2,12.319,12.313,49.1037]
[1672758545125,0.00327048,12.32,12.313,44.1037]
[1672758545336,12.18327048,12.32,12.312,0.06231441]
[1672758545755,1.5,12.319,12.312,0.06231441]
[1672758547440,1.41387771,12.319,12.312,0.06231441]
[1672758548811,12.11327048,12.32,12.312,0.06231441]
[1672758549018,5.0,12.319,12.312,0.06231441]
[1672758549652,6.5,12.319,12.312,0.06231441]
[1672758552698,5.0,12.319,12.312,0.06231441]
[1672758552905,0.00327048,12.32,12.312,0.06231441]
[1672758553428,1.2,12.319,12.312,0.06231441]
[1672758555846,6.2,12.319,12.301,12.14]
[1672758556158,6.2,12.319,12.302,5.0]
[1672758556375,12.18,12.316,12.302,5.0]
[1672758556687,5.0,12.315,12.302,5.0]
[1672758557006,5.0,12.315,12.304,0.06804304]
[1672758557007,0.07040179,12.313,12.304,0.06804304]
[1672758558155,5.0,12.312,12.298,5.0]
[1672758559206,0.06255189,12.309,12.301,0.06354026]
[1672758560465,12.11,12.306,12.295,45.1934]
[1672758560675,5.0,12.305,12.295,45.1934]
[1672758561520,0.06356605,12.304,12.296,0.06685508]
[1672758561938,0.06356605,12.304,12.296,5.06685508]
[1672758562257,0.06356605,12.304,12.296,0.06685508]
[1672758565197,1.2,12.303,12.296,0.06685508]
[1672758566038,5.0,12.302,12.289,44.2119]
[1672758567185,0.06733773,12.3,12.291,0.0633503]
[1672758569924,0.06733773,12.3,12.292,5.0]
[1672758570136,0.06733773,12.3,12.294,5.0]
[1672758575912,3.773e-05,12.3,12.295,12.14]
[1672758576127,3.773e-05,12.3,12.296,5.0]
[1672758582012,3.773e-05,12.3,12.298,12.15]
[1672758582225,5.0,12.318,12.299,52.256]
[1672758582436,5.0,12.318,12.302,12.18]
[1672758582648,5.0,12.318,12.303,5.0]
[1672758582961,17.18,12.324,12.305,12.15]